bitfinex/quotes_SOLUSD_20241127
["timestamp","ask_amount","ask_price","bid_price","bid_amount"]
[1732705443030,5.52795964,236.0,235.93,20.72889964]
[1732705443614,23.776884,235.99,235.91,20.72889964]
[1732705443817,26.72341484,235.98,235.89,20.72889964]
[1732705445433,20.72889964,235.94,235.85,20.72889964]
[1732705445827,23.776884,235.97,235.89,20.72889964]
[1732705446030,20.72889964,235.98,235.91,20.72889964]
[1732705446622,20.72889964,235.98,235.89,20.72889964]
[1732705447547,20.72889964,235.96,235.89,20.72889964]
[1732705448045,20.72889964,235.94,235.87,20.72889964]
[1732705448225,20.72889964,235.92,235.85,20.72889964]
[1732705449124,5.9945152,235.96,235.85,20.72889964]
[1732705449125,20.72889964,235.94,235.85,20.72889964]
[1732705450529,20.72889964,235.96,235.87,20.72889964]
[1732705451944,20.72889964,235.92,235.85,20.72889964]
[1732705452248,20.72889964,235.92,235.83,20.72889964]
[1732705452648,20.72889964,235.92,235.85,20.72889964]
[1732705454322,20.72889964,235.92,235.83,20.72889964]
[1732705455841,20.72889964,235.9,235.83,20.72889964]
[1732705456032,20.72889964,235.9,235.81,21.23591684]
[1732705457941,20.72889964,235.88,235.81,0.5070172]
[1732705458445,12.95895151,235.88,235.81,0.5070172]
[1732705458830,12.95895151,235.89,235.81,13.46596871]
[1732705459029,12.95895151,235.86,235.81,0.5070172]
[1732705460251,0.64,235.84,235.81,0.5070172]
[1732705460454,12.95895151,235.82,235.81,0.5070172]
[1732705461837,19.18457782,235.82,235.81,0.5070172]
[1732705462039,12.95895151,235.82,235.81,0.5070172]
[1732705464155,19.18457782,235.82,235.81,0.5070172]
[1732705465646,32.14352933,235.82,235.81,0.5070172]
[1732705466528,38.79493874,235.82,235.81,0.5070172]
[1732705466739,25.83598723,235.82,235.81,0.5070172]
[1732705466935,19.18457782,235.82,235.81,0.5070172]
[1732705467143,25.83598723,235.82,235.81,0.5070172]
[1732705467338,42.96146182,235.82,235.81,0.5070172]
[1732705467945,19.18457782,235.82,235.81,0.5070172]
[1732705468158,6.22562631,235.82,235.81,0.5070172]
[1732705468342,12.95895151,235.82,235.81,0.5070172]
[1732705468744,19.18457782,235.82,235.81,0.5070172]
[1732705469838,42.96146182,235.82,235.81,0.5070172]
[1732705474538,55.92041333,235.82,235.81,0.5070172]
[1732705475256,42.96146182,235.82,235.81,0.5070172]
[1732705475458,19.18457782,235.82,235.81,0.5070172]
[1732705477155,32.14352933,235.82,235.81,0.5070172]
[1732705478257,32.14352933,235.82,235.62,12.95895151]
[1732705478557,12.95895151,235.71,235.62,12.95895151]
[1732705479136,12.95895151,235.71,235.58,0.5070172]
[1732705479341,12.95895151,235.71,235.63,12.95895151]
[1732705480854,3.54324017,235.72,235.65,12.95895151]
[1732705481060,12.95895151,235.73,235.65,12.95895151]
[1732705482067,12.95895151,235.73,235.63,12.95895151]
[1732705482446,12.95895151,235.71,235.63,12.95895151]
[1732705483053,18.95346671,235.71,235.63,12.95895151]
[1732705484843,12.95895151,235.69,235.61,12.95895151]
[1732705485668,12.95895151,235.69,235.58,0.5070172]
[1732705485669,12.95895151,235.69,235.59,12.95895151]
[1732705486043,12.95895151,235.67,235.59,12.95895151]
[1732705487141,12.95895151,235.65,235.58,0.5070172]
[1732705487341,12.95895151,235.61,235.58,0.5070172]
[1732705487948,12.95895151,235.63,235.58,0.5070172]
[1732705488260,12.95895151,235.61,235.58,0.5070172]
[1732705490959,6.22562631,235.62,235.58,0.5070172]
[1732705492168,12.95895151,235.59,235.58,0.5070172]
[1732705492357,19.18457782,235.59,235.58,0.5070172]
[1732705493058,12.95895151,235.59,235.58,0.5070172]
[1732705493459,19.18457782,235.59,235.58,0.5070172]
[1732705496260,6.22562631,235.59,235.58,0.5070172]
[1732705496461,12.95895151,235.59,235.58,0.5070172]
[1732705500460,12.95895151,235.61,235.58,0.5070172]
[1732705500773,23.776884,235.6,235.58,0.5070172]
[1732705501562,12.95895151,235.61,235.58,0.5070172]
[1732705502256,6.65140941,235.8,235.58,13.46596871]
[1732705502454,12.95895151,235.67,235.6,12.95895151]
[1732705502875,12.95895151,235.71,235.62,12.95895151]
[1732705503081,12.95895151,235.71,235.64,12.95895151]
[1732705503583,12.95895151,235.73,235.66,12.95895151]
[1732705503788,12.95895151,235.75,235.66,12.95895151]
[1732705504085,12.95895151,235.77,235.7,12.95895151]
[1732705504259,12.95895151,235.79,235.7,12.95895151]
[1732705510355,12.95895151,235.77,235.7,12.95895151]
[1732705510556,0.64,235.84,235.66,12.95895151]
[1732705510557,12.95895151,235.73,235.66,12.95895151]
[1732705511868,12.95895151,235.75,235.66,12.95895151]
[1732705512057,12.95895151,235.75,235.68,12.95895151]
[1732705512781,0.64,235.84,235.71,12.95895151]
[1732705512782,12.95895151,235.79,235.71,12.95895151]
[1732705514455,23.776884,235.78,235.71,12.95895151]
[1732705514655,29.65663809,235.78,235.59,0.84658519]
[1732705514853,29.65663809,235.78,235.58,0.5070172]
[1732705514854,12.95895151,235.73,235.58,0.5070172]
[1732705515059,12.95895151,235.71,235.64,12.95895151]
[1732705516663,12.95895151,235.73,235.64,12.95895151]
[1732705517164,12.95895151,235.73,235.66,12.95895151]
[1732705517485,12.95895151,235.75,235.68,12.95895151]
[1732705517873,29.65663809,235.78,235.68,12.95895151]
[1732705518086,23.776884,235.76,235.68,12.95895151]
[1732705518385,12.95895151,235.75,235.66,12.95895151]
[1732705519680,12.95895151,235.71,235.64,12.95895151]
[1732705519884,12.95895151,235.8,235.58,0.5070172]
[1732705519885,12.95895151,235.69,235.62,12.95895151]
[1732705520081,12.95895151,235.69,235.6,12.95895151]
[1732705521482,12.95895151,235.71,235.62,12.95895151]
[1732705521687,12.95895151,235.71,235.64,12.95895151]
[1732705523883,12.95895151,235.71,235.62,12.95895151]
[1732705525986,12.95895151,235.69,235.62,12.95895151]
[1732705526180,12.95895151,235.69,235.6,12.95895151]
[1732705526385,12.95895151,235.67,235.58,13.46596871]
[1732705526565,12.95895151,235.65,235.63,15.0]
[1732705529493,18.8387056,235.65,235.63,15.0]
[1732705531091,5.87975409,235.64,235.63,15.0]
[1732705546291,14.1947162,235.64,235.63,15.0]
[1732705547592,5.87975409,235.64,235.63,15.0]
[1732705547796,8.31496211,235.64,235.63,15.0]
[1732705548482,14.1947162,235.64,235.63,15.0]
[1732705552082,5.87975409,235.64,235.63,15.0]
[1732705552287,8.31496211,235.66,235.63,15.0]
[1732705552491,8.31496211,235.68,235.63,15.0]
[1732705553082,5.87975409,235.68,235.63,15.0]
[1732705553288,14.1947162,235.68,235.63,15.0]
[1732705553696,5.87975409,235.67,235.63,15.0]
[1732705554505,14.1947162,235.7,235.63,15.0]
[1732705554703,8.31496211,235.7,235.63,15.0]
[1732705555200,5.87975409,235.69,235.63,15.0]
[1732705555600,8.31496211,235.68,235.63,15.0]
[1732705555785,14.1947162,235.68,235.63,15.0]
[1732705556105,8.31496211,235.64,235.63,15.0]
[1732705556292,8.31496211,235.66,235.63,15.0]
[1732705557404,12.98017789,235.66,235.63,15.0]
[1732705557586,4.66521578,235.66,235.63,15.0]
[1732705557799,8.31496211,235.65,235.63,15.0]
[1732705560511,8.31496211,235.68,235.63,15.0]
[1732705560805,8.31496211,235.71,235.63,15.0]
[1732705562589,8.31496211,235.69,235.63,15.0]
[1732705566897,5.87975409,235.75,235.63,15.0]
[1732705567094,8.31496211,235.7,235.63,15.0]
[1732705570117,6.65140941,235.79,235.68,8.31496211]
[1732705570327,6.65140941,235.8,235.71,8.31496211]
[1732705570500,14.96637152,235.81,235.73,8.31496211]
[1732705570819,8.31496211,235.81,235.73,8.31496211]
[1732705573725,8.31496211,235.8,235.73,8.31496211]
[1732705577229,8.31496211,235.81,235.73,8.31496211]
[1732705577433,8.31496211,235.77,235.68,8.31496211]
[1732705579499,23.776884,235.8,235.68,8.31496211]
[1732705579720,8.31496211,235.75,235.66,8.31496211]
[1732705580216,8.31496211,235.71,235.63,15.0]
[1732705580421,8.31496211,235.71,235.63,23.31496211]
[1732705580625,8.31496211,235.69,235.63,15.0]
[1732705582609,8.31496211,235.69,235.63,23.31496211]
[1732705582810,23.776884,235.78,235.63,23.31496211]
[1732705582811,8.31496211,235.71,235.63,23.31496211]
[1732705583125,8.31496211,235.71,235.63,15.0]
[1732705583708,8.31496211,235.69,235.63,15.0]
[1732705585125,8.31496211,235.71,235.63,15.0]
[1732705585305,8.31496211,235.75,235.66,8.31496211]
[1732705585512,8.31496211,235.75,235.68,8.31496211]
[1732705586923,5.87975409,235.79,235.68,8.31496211]
[1732705587160,8.31496211,235.76,235.68,8.31496211]
[1732705587521,5.87975409,235.79,235.68,8.31496211]
[1732705587706,8.31496211,235.79,235.7,8.31496211]
[1732705588804,8.31496211,235.75,235.59,0.84641043]
[1732705589007,8.31496211,235.75,235.65,8.31496211]
[1732705589836,8.31496211,235.73,235.65,8.31496211]
[1732705590518,12.97550626,235.73,235.65,12.97550626]
[1732705591015,12.53472767,235.73,235.65,12.97550626]
[1732705591519,12.97550626,235.75,235.67,12.97550626]
[1732705592632,12.97550626,235.73,235.65,12.97550626]
[1732705593734,12.97550626,235.71,235.63,12.97550626]
[1732705593927,12.97550626,235.71,235.61,12.97550626]
[1732705594241,12.97550626,235.69,235.61,12.97550626]
[1732705596529,12.97550626,235.69,235.58,0.5070172]
[1732705596743,12.97550626,235.67,235.58,13.48252346]
[1732705597418,12.97550626,235.67,235.6,12.97550626]
[1732705598120,12.97550626,235.65,235.58,0.5070172]
[1732705598422,12.97550626,235.63,235.58,0.5070172]
[1732705600051,12.97550626,235.61,235.58,0.5070172]
[1732705607030,5.40735544,235.68,235.58,0.5070172]
[1732705607325,12.5311635,235.7,235.6,12.97550626]
[1732705607546,18.85526035,235.73,235.64,12.97550626]
[1732705607723,12.97550626,235.73,235.66,12.97550626]
[1732705608429,12.97550626,235.71,235.64,12.97550626]
[1732705609838,5.87975409,235.75,235.64,12.97550626]
[1732705610050,12.97550626,235.71,235.64,12.97550626]
[1732705612241,12.97550626,235.73,235.64,12.97550626]
[1732705612429,12.97550626,235.73,235.58,1.3535583]
[1732705612430,18.85526035,235.75,235.66,12.97550626]
[1732705612954,12.97550626,235.77,235.68,12.97550626]
[1732705613153,12.97550626,235.75,235.66,12.97550626]
[1732705613455,12.97550626,235.73,235.66,12.97550626]
[1732705614356,12.97550626,235.73,235.64,12.97550626]
[1732705617333,12.97550626,235.71,235.64,12.97550626]
[1732705619839,12.97550626,235.71,235.62,12.97550626]
[1732705620248,12.97550626,235.69,235.58,0.5070172]
[1732705620449,8.30835393,235.66,235.59,8.30835393]
[1732705620841,23.776884,235.75,235.61,8.30835393]
[1732705621156,8.30835393,235.69,235.61,8.30835393]
[1732705621461,8.30835393,235.65,235.58,0.5070172]
[1732705621640,5.87975409,235.68,235.58,0.5070172]
[1732705621845,8.30835393,235.65,235.58,0.5070172]
[1732705622258,5.87975409,235.68,235.58,0.5070172]
[1732705622457,12.98746281,235.61,235.58,0.5070172]
[1732705623154,12.98746281,235.59,235.58,0.5070172]
[1732705624712,18.8672169,235.59,235.58,0.5070172]
[1732705625256,55.63156371,235.59,235.58,1e-08]
[1732705625448,29.65663809,235.58,235.4,12.98746281]
[1732705625646,12.98746281,235.48,235.4,12.98746281]
[1732705626163,12.98746281,235.46,235.38,12.98746281]
[1732705626545,12.98746281,235.46,235.35,0.5070172]
[1732705626747,12.98746281,235.46,235.37,12.98746281]
[1732705627178,12.98746281,235.48,235.35,0.5070172]
[1732705627470,5.87975409,235.55,235.35,0.5070172]
[1732705627471,12.98746281,235.46,235.37,12.98746281]
[1732705627658,5.87975409,235.55,235.39,12.98746281]
[1732705627659,12.98746281,235.48,235.39,12.98746281]
[1732705629272,8.54161859,235.59,235.35,0.5070172]
[1732705629273,12.98746281,235.52,235.43,12.98746281]
[1732705629476,12.98746281,235.52,235.45,12.98746281]
[1732705629673,12.98746281,235.48,235.41,12.98746281]
[1732705629873,12.98746281,235.46,235.39,12.98746281]
[1732705630089,12.98746281,235.46,235.35,0.5070172]
[1732705630386,12.98746281,235.48,235.41,12.98746281]
[1732705631378,12.98746281,235.44,235.36,12.98746281]
[1732705631876,12.98746281,235.44,235.35,0.5070172]
[1732705631877,12.98746281,235.37,235.35,0.5070172]
[1732705632265,12.98746281,235.39,235.35,0.5070172]
[1732705633379,19.17777245,235.39,235.35,0.5070172]
[1732705633566,12.98746281,235.37,235.35,0.5070172]
[1732705633875,19.17777245,235.37,235.35,0.5070172]
[1732705634083,6.19030964,235.36,235.35,0.5070172]
[1732705634468,12.98746281,235.37,235.35,0.5070172]
[1732705635592,5.91933187,235.42,235.35,0.5070172]
[1732705635885,12.98746281,235.42,235.35,0.5070172]
[1732705639275,12.98746281,235.4,235.35,0.5070172]
[1732705641986,12.98746281,235.38,235.35,0.5070172]
[1732705642984,18.57806498,235.38,235.35,0.5070172]
[1732705643670,12.98746281,235.36,235.35,0.5070172]
[1732705647598,36.76434681,235.36,235.35,0.5070172]
[1732705647804,42.35494898,235.36,235.35,0.5070172]
[1732705648092,18.57806498,235.36,235.35,0.5070172]
[1732705648265,1.862139,235.53,235.35,0.5070172]
[1732705648463,12.98746281,235.4,235.35,0.5070172]
[1732705649291,5.59060217,235.44,235.35,0.5070172]
[1732705649292,12.98746281,235.36,235.35,0.5070172]
[1732705650186,18.57806498,235.36,235.35,0.5070172]
[1732705652178,5.59060217,235.35,235.2,12.98746281]
[1732705652486,12.98746281,235.29,235.2,12.98746281]
[1732705653490,12.98746281,235.29,235.22,12.98746281]
[1732705653794,12.98746281,235.34,235.26,12.98746281]
[1732705654087,14.87952194,235.44,235.11,13.4944802]
[1732705654088,12.98746281,235.32,235.18,23.776884]
[1732705654310,12.98746281,235.3,235.22,12.98746281]
[1732705655084,12.98746281,235.32,235.22,12.98746281]
[1732705655666,3.20006367,235.31,235.22,12.98746281]
[1732705655866,5.59060217,235.31,235.22,12.98746281]
[1732705656271,12.98746281,235.3,235.22,12.98746281]
[1732705656882,18.57806498,235.3,235.22,12.98746281]
[1732705658296,12.98746281,235.3,235.22,12.98746281]
[1732705659400,12.98746281,235.32,235.24,12.98746281]
[1732705660084,12.98746281,235.34,235.26,12.98746281]
[1732705660398,12.98746281,235.38,235.3,12.98746281]
[1732705661573,18.57806498,235.38,235.3,12.98746281]
[1732705661791,12.98746281,235.36,235.28,12.98746281]
[1732705662176,18.57806498,235.36,235.28,12.98746281]
[1732705662795,12.98746281,235.32,235.24,12.98746281]
[1732705663401,12.98746281,235.32,235.13,0.84787528]
[1732705663402,12.98746281,235.32,235.25,12.98746281]
[1732705664294,12.98746281,235.28,235.14,0.84801918]
[1732705664596,12.98746281,235.28,235.2,12.98746281]
[1732705667474,12.98746281,235.28,235.18,12.98746281]
[1732705667675,12.98746281,235.26,235.18,12.98746281]
[1732705667875,5.59060217,235.29,235.18,12.98746281]
[1732705668088,12.98746281,235.29,235.2,12.98746281]
[1732705669602,12.98746281,235.29,235.14,23.776884]
[1732705669808,12.98746281,235.27,235.19,12.98746281]
[1732705669984,12.98746281,235.27,235.16,23.776884]
[1732705670187,12.98746281,235.27,235.18,12.98746281]
[1732705670594,12.98746281,235.27,235.16,23.776884]
[1732705670788,12.98746281,235.27,235.19,12.98746281]
[1732705672798,12.98746281,235.29,235.21,12.98746281]
[1732705673383,12.98746281,235.32,235.24,12.98746281]
[1732705673587,12.98746281,235.34,235.25,12.98746281]
[1732705673794,18.57806498,235.34,235.25,12.98746281]
[1732705674590,18.57806498,235.33,235.26,12.98746281]
[1732705674982,6.65140941,235.44,235.31,12.98746281]
[1732705675185,12.98746281,235.41,235.33,12.98746281]
[1732705675507,12.98746281,235.44,235.36,12.98746281]
[1732705675683,6.65140941,235.5,235.4,12.98746281]
[1732705675888,6.65140941,235.5,235.42,12.98746281]
[1732705676086,12.98746281,235.49,235.42,12.98746281]
[1732705676296,12.98746281,235.49,235.4,12.98746281]
[1732705676586,12.98746281,235.47,235.38,12.98746281]
[1732705677192,12.98746281,235.47,235.33,0.84739938]
[1732705677193,5.27997439,235.47,235.4,12.98746281]
[1732705677393,5.27997439,235.47,235.33,0.84739938]
[1732705677394,12.98746281,235.46,235.38,12.98746281]
[1732705677993,11.9313838,235.52,235.36,12.98746281]
[1732705677994,12.98746281,235.44,235.36,12.98746281]
[1732705678401,12.98746281,235.46,235.38,12.98746281]
[1732705679111,12.98746281,235.48,235.4,12.98746281]
[1732705680703,12.98746281,235.5,235.42,12.98746281]
[1732705681506,12.98746281,235.48,235.4,12.98746281]
[1732705681888,12.98746281,235.5,235.42,12.98746281]
[1732705682089,12.98746281,235.56,235.48,12.98746281]
[1732705682310,12.98746281,235.58,235.5,12.98746281]
[1732705683192,46.89700518,235.67,235.52,12.98746281]
[1732705683193,12.98746281,235.6,235.52,12.98746281]
[1732705683596,11.9313838,235.67,235.52,12.98746281]
[1732705683917,12.98746281,235.6,235.52,12.98746281]
[1732705685721,12.98746281,235.64,235.56,12.98746281]
[1732705686607,12.98746281,235.66,235.58,12.98746281]
[1732705686921,12.98746281,235.68,235.6,12.98746281]
[1732705687125,12.98746281,235.7,235.62,12.98746281]
[1732705687419,12.98746281,235.72,235.62,12.98746281]
[1732705687806,12.98746281,235.68,235.6,12.98746281]
[1732705688011,12.98746281,235.68,235.47,1.85884002]
[1732705688012,12.98746281,235.66,235.58,12.98746281]
[1732705688321,12.98746281,235.66,235.48,0.84673216]
[1732705688322,12.98746281,235.68,235.6,12.98746281]
[1732705688893,12.98746281,235.72,235.62,12.98746281]
[1732705689312,0.64,235.84,235.7,12.98746281]
[1732705689514,12.98746281,235.79,235.7,12.98746281]
[1732705689901,12.98746281,235.77,235.68,12.98746281]
[1732705691012,12.98746281,235.77,235.7,12.98746281]
[1732705691324,12.98746281,235.79,235.7,12.98746281]
[1732705693009,23.776884,235.78,235.7,12.98746281]
[1732705693208,23.776884,235.78,235.72,12.98746281]
[1732705694604,12.98746281,235.77,235.7,12.98746281]
[1732705695299,12.98746281,235.81,235.72,12.98746281]
[1732705696815,12.98746281,235.79,235.72,12.98746281]
[1732705697110,12.98746281,235.77,235.7,12.98746281]
[1732705697498,12.98746281,235.77,235.68,12.98746281]
[1732705697798,0.64,235.84,235.56,14.83437089]
[1732705697799,12.98746281,235.73,235.64,12.98746281]
[1732705697999,12.98746281,235.75,235.66,12.98746281]
[1732705698907,12.98746281,235.75,235.68,12.98746281]
[1732705699116,12.98746281,235.79,235.7,12.98746281]
[1732705699302,12.98746281,235.79,235.6,23.776884]
[1732705699303,12.98746281,235.81,235.74,12.98746281]
[1732705700005,0.64,235.84,235.76,12.98746281]
[1732705700321,13.62746281,235.84,235.76,12.98746281]
[1732705700522,0.64,235.84,235.78,12.98746281]
[1732705701301,12.98746281,235.83,235.71,0.84628924]
[1732705701506,23.776884,235.8,235.71,12.98746281]
[1732705701701,23.776884,235.8,235.73,12.98746281]
[1732705701896,0.84624607,235.79,235.73,12.98746281]
[1732705702123,23.776884,235.78,235.73,12.98746281]
[1732705702327,23.776884,235.76,235.73,12.98746281]
[1732705703205,23.776884,235.76,235.71,12.98746281]
[1732705703415,24.62313007,235.78,235.71,12.98746281]
[1732705703610,12.98746281,235.75,235.59,0.84625002]
[1732705703815,36.76434681,235.73,235.65,12.98746281]
[1732705704119,23.776884,235.71,235.65,12.98746281]
[1732705705305,23.776884,235.69,235.63,12.98746281]
[1732705705516,23.776884,235.67,235.61,12.98746281]
[1732705705906,23.776884,235.67,235.63,12.98746281]
[1732705706319,23.776884,235.67,235.63,20.7668052]
[1732705706621,0.84624607,235.68,235.63,20.7668052]
[1732705706622,24.62313007,235.69,235.63,20.7668052]
[1732705707210,23.776884,235.67,235.61,20.7668052]
[1732705707527,23.776884,235.65,235.61,20.7668052]
[1732705707729,23.776884,235.63,235.59,20.7668052]
[1732705708330,23.776884,235.64,235.59,20.7668052]
[1732705708624,44.5436892,235.62,235.53,20.7668052]
[1732705708830,0.84624607,235.61,235.53,20.7668052]
[1732705709013,23.776884,235.6,235.53,20.7668052]
[1732705709323,23.776884,235.58,235.53,20.7668052]
[1732705709520,23.776884,235.56,235.53,20.7668052]
[1732705709905,23.776884,235.58,235.55,20.7668052]
[1732705710105,23.776884,235.58,235.57,20.7668052]
[1732705711210,23.776884,235.58,235.55,20.7668052]
[1732705712333,23.776884,235.62,235.57,20.7668052]
[1732705712511,0.84624607,235.67,235.61,20.7668052]
[1732705712719,0.84624607,235.69,235.63,20.7668052]
[1732705713230,0.84624607,235.71,235.63,20.7668052]
[1732705713416,20.7668052,235.7,235.61,20.7668052]
[1732705713609,0.84624607,235.69,235.61,20.7668052]
[1732705713809,23.776884,235.68,235.61,20.7668052]
[1732705714017,0.84624607,235.67,235.61,20.7668052]
[1732705714234,23.776884,235.66,235.63,20.7668052]
[1732705714633,23.776884,235.68,235.63,20.7668052]
[1732705714839,23.776884,235.66,235.61,20.7668052]
[1732705715337,20.7668052,235.68,235.61,20.7668052]
[1732705715338,23.776884,235.64,235.61,20.7668052]
[1732705715918,23.776884,235.66,235.61,20.7668052]
[1732705716220,23.776884,235.64,235.61,20.7668052]
[1732705716523,23.776884,235.64,235.59,20.7668052]
[1732705716910,23.776884,235.66,235.59,20.7668052]
[1732705717115,23.776884,235.62,235.59,20.7668052]
[1732705718035,0.84624607,235.61,235.59,20.7668052]
[1732705718220,23.776884,235.6,235.57,20.7668052]
[1732705718856,23.776884,235.62,235.57,20.7668052]
[1732705719039,23.776884,235.6,235.57,20.7668052]
[1732705721949,23.776884,235.62,235.57,20.7668052]
[1732705722150,23.776884,235.6,235.57,20.7668052]
[1732705722837,23.776884,235.58,235.55,20.7668052]
[1732705723161,23.776884,235.56,235.53,20.7668052]
[1732705726059,0.84624607,235.61,235.55,20.7668052]
[1732705726260,0.84624607,235.61,235.45,0.84695764]
[1732705726261,0.84624607,235.63,235.57,20.7668052]
[1732705726762,0.84624607,235.65,235.57,20.7668052]
[1732705727348,23.776884,235.64,235.57,20.7668052]
[1732705727550,44.5436892,235.62,235.55,20.7668052]
[1732705727752,44.5436892,235.62,235.45,0.84695764]
[1732705727753,0.84624607,235.61,235.53,20.7668052]
[1732705727944,23.776884,235.6,235.53,20.7668052]
[1732705728258,23.776884,235.55,235.37,0.84697297]
[1732705728562,23.776884,235.53,235.47,12.9969137]
[1732705728757,0.84624607,235.52,235.47,12.9969137]
[1732705729154,23.776884,235.53,235.47,12.9969137]
[1732705729459,0.84624607,235.52,235.47,12.9969137]
[1732705729638,24.62313007,235.54,235.47,12.9969137]
[1732705730553,24.62313007,235.54,235.49,12.9969137]
[1732705731646,24.62313007,235.54,235.38,0.84716708]
[1732705731847,24.62313007,235.54,235.48,12.9969137]
[1732705732955,24.62313007,235.54,235.38,0.84716708]
[1732705733148,24.62313007,235.54,235.45,12.9969137]
[1732705733661,24.62313007,235.54,235.47,12.9969137]
[1732705734455,24.62313007,235.54,235.49,12.9969137]
[1732705734657,24.62313007,235.54,235.51,12.9969137]
[1732705736674,24.62313007,235.54,235.49,12.9969137]
[1732705738669,24.62313007,235.54,235.51,12.9969137]
[1732705739250,23.776884,235.54,235.53,12.9969137]
[1732705740651,0.84624607,235.6,235.53,12.9969137]
[1732705740851,12.9969137,235.65,235.57,12.9969137]
[1732705741054,0.84624607,235.64,235.59,12.9969137]
[1732705741268,0.84624607,235.66,235.61,12.9969137]
[1732705741770,5.53181328,235.73,235.65,12.9969137]
[1732705741771,13.84315977,235.72,235.65,12.9969137]
[1732705742152,0.84624607,235.72,235.65,12.9969137]
[1732705742857,6.37805935,235.73,235.68,12.9969137]
[1732705743057,12.9969137,235.77,235.68,12.9969137]
[1732705743275,12.9969137,235.75,235.68,12.9969137]
[1732705743471,0.84624607,235.74,235.68,12.9969137]
[1732705744451,23.776884,235.73,235.68,12.9969137]
[1732705744651,23.776884,235.71,235.68,12.9969137]
[1732705744953,23.776884,235.7,235.68,12.9969137]
[1732705745267,23.776884,235.7,235.57,0.84668127]
[1732705745462,23.776884,235.68,235.64,12.9969137]
[1732705745878,23.776884,235.7,235.64,12.9969137]
[1732705746065,23.776884,235.68,235.64,12.9969137]
[1732705746671,23.776884,235.7,235.64,12.9969137]
[1732705746854,23.776884,235.68,235.64,12.9969137]
[1732705747458,23.776884,235.7,235.64,12.9969137]
[1732705747658,23.776884,235.68,235.64,12.9969137]
[1732705748480,23.776884,235.7,235.64,12.9969137]
[1732705748656,23.776884,235.68,235.64,12.9969137]
[1732705749457,0.84624607,235.71,235.64,12.9969137]
[1732705749458,23.776884,235.7,235.64,12.9969137]
[1732705749654,23.776884,235.68,235.66,12.9969137]
[1732705750154,23.776884,235.68,235.57,0.84668127]
[1732705750355,0.84624607,235.73,235.67,12.9969137]
[1732705750568,12.9969137,235.78,235.7,12.9969137]
[1732705750768,0.84624607,235.77,235.72,12.9969137]
[1732705750970,0.84624607,235.79,235.72,12.9969137]
[1732705751275,12.9969137,235.78,235.69,12.9969137]
[1732705751575,12.9969137,235.78,235.59,0.84641511]
[1732705751576,12.9969137,235.74,235.59,0.84641511]
[1732705751760,0.84624607,235.73,235.65,12.9969137]
[1732705752081,23.776884,235.72,235.65,12.9969137]
[1732705752253,23.776884,235.7,235.69,12.9969137]
[1732705752655,23.776884,235.77,235.69,12.9969137]
[1732705752869,23.776884,235.75,235.71,12.9969137]
[1732705753064,23.776884,235.75,235.57,0.84654266]
[1732705753279,23.776884,235.73,235.69,12.9969137]
[1732705753574,23.776884,235.71,235.67,12.9969137]
[1732705753758,23.776884,235.71,235.57,0.84654266]
[1732705753759,23.776884,235.69,235.65,12.9969137]
[1732705753953,0.84624607,235.7,235.65,12.9969137]
[1732705754161,23.776884,235.71,235.69,12.9969137]
[1732705754674,23.776884,235.71,235.57,0.84654266]
[1732705754880,24.62313007,235.73,235.66,12.9969137]
[1732705755381,24.62313007,235.73,235.7,12.9969137]
[1732705755558,23.776884,235.71,235.68,12.9969137]
[1732705758970,23.776884,235.74,235.68,12.9969137]
[1732705759167,0.84624607,235.73,235.68,12.9969137]
[1732705762082,36.7737977,235.72,235.64,12.9969137]
[1732705762387,23.776884,235.7,235.64,12.9969137]
[1732705762688,0.84624607,235.69,235.57,0.84646156]
[1732705762897,0.84624607,235.69,235.63,12.9969137]
[1732705763066,0.84624607,235.69,235.65,12.9969137]
[1732705763874,23.776884,235.7,235.65,12.9969137]
[1732705764073,0.84624607,235.73,235.57,0.84658459]
[1732705764270,23.776884,235.74,235.57,0.84658459]
[1732705764469,0.84624607,235.73,235.69,12.9969137]
[1732705764869,0.84624607,235.75,235.69,12.9969137]
[1732705765068,12.9969137,235.78,235.69,12.9969137]
[1732705765287,0.84624607,235.77,235.69,12.9969137]
[1732705765487,0.84624607,235.77,235.73,12.9969137]
[1732705765791,0.84624607,235.79,235.73,12.9969137]
[1732705766991,23.776884,235.78,235.73,12.9969137]
[1732705767194,23.776884,235.74,235.52,0.84632041]
[1732705767496,12.9969137,235.69,235.52,0.84632041]
[1732705767664,0.84624607,235.68,235.61,12.9969137]
[1732705768069,12.9969137,235.65,235.48,0.84661603]
[1732705768373,36.7737977,235.63,235.36,0.84686224]
[1732705768570,36.7737977,235.63,235.52,12.9969137]
[1732705768571,12.9969137,235.61,235.52,12.9969137]
[1732705768790,0.84624607,235.6,235.54,12.9969137]
[1732705768995,0.84624607,235.62,235.54,12.9969137]
[1732705769179,6.65140941,235.78,235.6,12.9969137]
[1732705769180,23.776884,235.66,235.6,12.9969137]
[1732705769491,12.9969137,235.69,235.62,12.9969137]